[Event "*** SCC Grand Prix: Titled Tuesday Blitz"]
[Site "Chess.com"]
[Date "2020.06.09"]
[Round "9"]
[White "Jospem"]
[Black "lachesisQ"]
[Result "1/2-1/2"]
[WhiteElo "2874"]
[BlackElo "3038"]
[TimeControl "180+1"]
[EndTime "10:48:20 PDT"]
[Termination "Game drawn by stalemate"]

1. c4 {[%clk 0:02:59.2]} 1... e5 {[%clk 0:02:59.9]} 2. Nc3 {[%clk 0:02:59.3]}
2... Nf6 {[%clk 0:03:00.1]} 3. Nf3 {[%clk 0:02:59.9]} 3... Nc6 {[%clk
0:03:00.1]} 4. a3 {[%clk 0:03:00.5]} 4... d5 {[%clk 0:02:59.9]} 5. cxd5 {[%clk
0:03:01.4]} 5... Nxd5 {[%clk 0:03:00.8]} 6. Qc2 {[%clk 0:03:01.4]} 6... Be7
{[%clk 0:03:00.3]} 7. e3 {[%clk 0:03:02]} 7... O-O {[%clk 0:02:59]} 8. Bd3
{[%clk 0:03:02.4]} 8... h6 {[%clk 0:02:52.1]} 9. Nxd5 {[%clk 0:02:59.3]} 9...
Qxd5 {[%clk 0:02:51.7]} 10. b4 {[%clk 0:02:59.5]} 10... a6 {[%clk 0:02:46.6]}
11. Bb2 {[%clk 0:02:59.3]} 11... Bf6 {[%clk 0:02:29.4]} 12. Rc1 {[%clk
0:02:50.1]} 12... Qd6 {[%clk 0:02:28]} 13. Be4 {[%clk 0:02:48.2]} 13... Bd7
{[%clk 0:02:26.7]} 14. O-O {[%clk 0:02:48.6]} 14... Rac8 {[%clk 0:02:26.4]} 15.
Rfd1 {[%clk 0:02:48]} 15... Qe7 {[%clk 0:02:23.4]} 16. d4 {[%clk 0:02:39.1]}
16... exd4 {[%clk 0:02:22.9]} 17. exd4 {[%clk 0:02:40]} 17... Qd6 {[%clk
0:02:08]} 18. d5 {[%clk 0:02:32.7]} 18... Ne5 {[%clk 0:01:59.6]} 19. Bxe5 {[%clk
0:02:31.9]} 19... Bxe5 {[%clk 0:02:00.5]} 20. Bh7+ {[%clk 0:02:29.6]} 20... Kh8
{[%clk 0:02:00.3]} 21. Bf5 {[%clk 0:02:30.5]} 21... Bxf5 {[%clk 0:01:57.9]} 22.
Qxf5 {[%clk 0:02:31.4]} 22... Bb2 {[%clk 0:01:57.2]} 23. Rb1 {[%clk 0:02:28.5]}
23... Bxa3 {[%clk 0:01:50.5]} 24. Ne5 {[%clk 0:02:25.4]} 24... Bxb4 {[%clk
0:01:26]} 25. Nxf7+ {[%clk 0:02:21.9]} 25... Rxf7 {[%clk 0:01:26.4]} 26. Qxc8+
{[%clk 0:02:19.1]} 26... Rf8 {[%clk 0:01:26.2]} 27. Qxb7 {[%clk 0:02:09.9]}
27... Bc5 {[%clk 0:01:26.2]} 28. Rf1 {[%clk 0:02:09.9]} 28... a5 {[%clk
0:01:26.2]} 29. Qc6 {[%clk 0:01:46.3]} 29... Qxc6 {[%clk 0:01:22.4]} 30. dxc6
{[%clk 0:01:47.2]} 30... Rf6 {[%clk 0:01:23.2]} 31. Rb2 {[%clk 0:01:27.9]} 31...
Kh7 {[%clk 0:01:13]} 32. Rc2 {[%clk 0:01:26.8]} 32... Bb4 {[%clk 0:01:06]} 33.
g3 {[%clk 0:01:23.1]} 33... a4 {[%clk 0:01:04.5]} 34. Rb1 {[%clk 0:01:21.2]}
34... Bd6 {[%clk 0:01:02.4]} 35. Rb7 {[%clk 0:01:20.6]} 35... a3 {[%clk
0:01:02.4]} 36. Ra7 {[%clk 0:01:20.4]} 36... Rf5 {[%clk 0:00:59.9]} 37. Kg2
{[%clk 0:01:18.3]} 37... Rb5 {[%clk 0:01:00]} 38. h4 {[%clk 0:01:14.5]} 38... h5
{[%clk 0:01:00.4]} 39. Rd2 {[%clk 0:01:13]} 39... Kg6 {[%clk 0:00:57.6]} 40. Rd3
{[%clk 0:00:55]} 40... Rb6 {[%clk 0:00:49.3]} 41. Rc3 {[%clk 0:00:52.7]} 41...
Rb2 {[%clk 0:00:47.4]} 42. Rc4 {[%clk 0:00:33.6]} 42... Kf6 {[%clk 0:00:44.6]}
43. Ra5 {[%clk 0:00:31.3]} 43... g6 {[%clk 0:00:43.6]} 44. Ra7 {[%clk
0:00:26.3]} 44... Rb5 {[%clk 0:00:40]} 45. Rc3 {[%clk 0:00:22.8]} 45... Rb2
{[%clk 0:00:39.2]} 46. Ra4 {[%clk 0:00:22.3]} 46... Rd2 {[%clk 0:00:34.7]} 47.
Rf3+ {[%clk 0:00:18.2]} 47... Kg7 {[%clk 0:00:34.8]} 48. Raxa3 {[%clk
0:00:07.7]} 48... Bxa3 {[%clk 0:00:35.7]} 49. Rxa3 {[%clk 0:00:08.6]} 49... Rc2
{[%clk 0:00:36]} 50. Ra6 {[%clk 0:00:08.9]} 50... Kf6 {[%clk 0:00:36.1]} 51. Kf3
{[%clk 0:00:08.7]} 51... Ke5 {[%clk 0:00:36]} 52. Ra5+ {[%clk 0:00:08.1]} 52...
Ke6 {[%clk 0:00:36.5]} 53. Ra6 {[%clk 0:00:08]} 53... Rc4 {[%clk 0:00:34]} 54.
Ke3 {[%clk 0:00:07.3]} 54... Kd5 {[%clk 0:00:33.7]} 55. Ra5+ {[%clk 0:00:07.1]}
55... Ke6 {[%clk 0:00:34.2]} 56. Ra6 {[%clk 0:00:05.4]} 56... Ke5 {[%clk
0:00:34.6]} 57. Ra5+ {[%clk 0:00:05.8]} 57... Kf6 {[%clk 0:00:34.5]} 58. Ra6
{[%clk 0:00:05.9]} 58... Ke6 {[%clk 0:00:35.1]} 59. Kf3 {[%clk 0:00:05.5]} 59...
Rc5 {[%clk 0:00:33.7]} 60. Kg2 {[%clk 0:00:05.2]} 60... Kd5 {[%clk 0:00:32.2]}
61. Ra8 {[%clk 0:00:05.6]} 61... Rxc6 {[%clk 0:00:31.6]} 62. f3 {[%clk
0:00:05.6]} 62... Rd6 {[%clk 0:00:30.4]} 63. g4 {[%clk 0:00:06]} 63... c5 {[%clk
0:00:30.7]} 64. gxh5 {[%clk 0:00:06.1]} 64... gxh5 {[%clk 0:00:31.6]} 65. Rh8
{[%clk 0:00:05.1]} 65... c4 {[%clk 0:00:31.9]} 66. Rxh5+ {[%clk 0:00:05.7]}
66... Kd4 {[%clk 0:00:32.2]} 67. Kf2 {[%clk 0:00:04.8]} 67... Kd3 {[%clk
0:00:31.8]} 68. Rc5 {[%clk 0:00:04.2]} 68... c3 {[%clk 0:00:32.1]} 69. f4 {[%clk
0:00:04.5]} 69... c2 {[%clk 0:00:32.1]} 70. f5 {[%clk 0:00:04.2]} 70... Rd4
{[%clk 0:00:32.3]} 71. f6 {[%clk 0:00:02.8]} 71... Rc4 {[%clk 0:00:32.1]} 72.
Rxc4 {[%clk 0:00:02.9]} 72... Kxc4 {[%clk 0:00:30.9]} 73. f7 {[%clk 0:00:03.8]}
73... c1=Q {[%clk 0:00:30.8]} 74. f8=Q {[%clk 0:00:04.7]} 74... Qd2+ {[%clk
0:00:31.2]} 75. Kg3 {[%clk 0:00:05.2]} 75... Qe1+ {[%clk 0:00:31.3]} 76. Qf2
{[%clk 0:00:05.4]} 76... Qxf2+ {[%clk 0:00:30.6]} 77. Kxf2 {[%clk 0:00:05.4]}
77... Kd5 {[%clk 0:00:31.5]} 78. Kg3 {[%clk 0:00:05.2]} 78... Ke6 {[%clk
0:00:31.5]} 79. Kg4 {[%clk 0:00:06.1]} 79... Kf7 {[%clk 0:00:32.4]} 80. h5
{[%clk 0:00:06.8]} 80... Kg8 {[%clk 0:00:33.3]} 81. Kg5 {[%clk 0:00:07.2]} 81...
Kh8 {[%clk 0:00:34.2]} 82. h6 {[%clk 0:00:08.1]} 82... Kh7 {[%clk 0:00:34.6]}
83. Kh5 {[%clk 0:00:08.4]} 83... Kh8 {[%clk 0:00:35.5]} 84. Kg6 {[%clk
0:00:09.3]} 84... Kg8 {[%clk 0:00:35.9]} 85. h7+ {[%clk 0:00:10.2]} 85... Kh8
{[%clk 0:00:36.8]} 86. Kh6 {[%clk 0:00:11.1]} 1/2-1/2

[Event "*** SCC Grand Prix: Titled Tuesday Blitz"]
[Site "Chess.com"]
[Date "2020.06.09"]
[Round "9"]
[White "MFguimaraes"]
[Black "Kapitan_Bayan"]
[Result "0-1"]
[WhiteElo "2454"]
[BlackElo "2369"]
[TimeControl "180+1"]
[EndTime "10:48:27 PDT"]
[Termination "Kapitan_Bayan won by resignation"]

1. e4 {[%clk 0:03:00.9]} 1... Nc6 {[%clk 0:02:57.8]} 2. Nf3 {[%clk 0:02:59.4]}
2... d6 {[%clk 0:02:56.9]} 3. d4 {[%clk 0:02:58.5]} 3... Bg4 {[%clk 0:02:56.2]}
4. d5 {[%clk 0:02:56]} 4... Ne5 {[%clk 0:02:56.1]} 5. Bb5+ {[%clk 0:02:43.1]}
5... Bd7 {[%clk 0:02:52.1]} 6. Be2 {[%clk 0:02:38.2]} 6... Nf6 {[%clk
0:02:47.9]} 7. Nxe5 {[%clk 0:02:35]} 7... dxe5 {[%clk 0:02:48.8]} 8. Nc3 {[%clk
0:02:23.4]} 8... e6 {[%clk 0:02:48.7]} 9. Bg5 {[%clk 0:02:22.2]} 9... Bb4 {[%clk
0:02:38.5]} 10. O-O {[%clk 0:02:16.9]} 10... h6 {[%clk 0:02:30.3]} 11. Bh4
{[%clk 0:02:16]} 11... O-O {[%clk 0:01:58.9]} 12. Qd3 {[%clk 0:02:05.1]} 12...
a6 {[%clk 0:01:48.7]} 13. Rfd1 {[%clk 0:01:53.8]} 13... Bc5 {[%clk 0:01:37.4]}
14. dxe6 {[%clk 0:01:50.3]} 14... Bxe6 {[%clk 0:01:37.3]} 15. Qg3 {[%clk
0:01:46.6]} 15... Bd4 {[%clk 0:01:30.4]} 16. Nd5 {[%clk 0:01:27.7]} 16... Nxe4
{[%clk 0:01:01.1]} 17. Bxd8 {[%clk 0:00:35.9]} 17... Nxg3 {[%clk 0:01:00.7]} 18.
hxg3 {[%clk 0:00:30.8]} 18... Raxd8 {[%clk 0:01:01]} 19. Nxc7 {[%clk 0:00:27.3]}
19... Bc8 {[%clk 0:01:01.3]} 20. c3 {[%clk 0:00:25.9]} 20... Bb6 {[%clk
0:00:56.7]} 21. Nd5 {[%clk 0:00:26]} 21... Bc5 {[%clk 0:00:54.9]} 22. b4 {[%clk
0:00:25.9]} 22... Be6 {[%clk 0:00:46.6]} 23. bxc5 {[%clk 0:00:25.4]} 23... Rxd5
{[%clk 0:00:42.1]} 24. Bf3 {[%clk 0:00:24.1]} 24... Rxc5 {[%clk 0:00:39.4]} 25.
Bxb7 {[%clk 0:00:23.4]} 25... a5 {[%clk 0:00:39.1]} 26. Rd3 {[%clk 0:00:22.1]}
26... Rb8 {[%clk 0:00:37.4]} 27. Bf3 {[%clk 0:00:21.8]} 27... Rb2 {[%clk
0:00:26.4]} 28. a4 {[%clk 0:00:22.1]} 28... Rb3 {[%clk 0:00:17]} 29. Rd8+ {[%clk
0:00:20.1]} 29... Kh7 {[%clk 0:00:16.6]} 30. g4 {[%clk 0:00:20.7]} 30... Rbxc3
{[%clk 0:00:14.1]} 31. Be4+ {[%clk 0:00:21.1]} 31... g6 {[%clk 0:00:14]} 32. f3
{[%clk 0:00:21.6]} 32... Rc1+ {[%clk 0:00:13.5]} 33. Rxc1 {[%clk 0:00:22.2]}
33... Rxc1+ {[%clk 0:00:14.3]} 34. Kh2 {[%clk 0:00:23.1]} 34... Rc4 {[%clk
0:00:14.1]} 35. Rb8 {[%clk 0:00:20.3]} 35... Rxa4 {[%clk 0:00:14.1]} 36. Rb5
{[%clk 0:00:21.2]} 36... Kg7 {[%clk 0:00:09.8]} 37. Rxe5 {[%clk 0:00:21.3]}
37... Ra2 {[%clk 0:00:10.1]} 38. Rc5 {[%clk 0:00:21.7]} 38... a4 {[%clk
0:00:10.3]} 39. Bd5 {[%clk 0:00:22.3]} 39... Bxd5 {[%clk 0:00:10]} 40. Rxd5
{[%clk 0:00:23.2]} 40... a3 {[%clk 0:00:10.5]} 41. Ra5 {[%clk 0:00:24.1]} 41...
Ra1 {[%clk 0:00:10.4]} 42. Kg3 {[%clk 0:00:24.7]} 42... a2 {[%clk 0:00:10.7]}
43. Ra7 {[%clk 0:00:25.2]} 43... Kf6 {[%clk 0:00:11]} 44. Ra6+ {[%clk
0:00:25.9]} 44... Ke7 {[%clk 0:00:11.1]} 45. Ra7+ {[%clk 0:00:26.2]} 45... Kd6
{[%clk 0:00:11.5]} 46. Ra6+ {[%clk 0:00:26.6]} 46... Kc5 {[%clk 0:00:11.7]} 47.
Ra5+ {[%clk 0:00:27.1]} 47... Kb4 {[%clk 0:00:11.7]} 48. Ra7 {[%clk 0:00:27.6]}
48... h5 {[%clk 0:00:11.6]} 49. gxh5 {[%clk 0:00:27]} 49... gxh5 {[%clk
0:00:12.5]} 50. Rb7+ {[%clk 0:00:27.3]} 50... Kc5 {[%clk 0:00:12.8]} 51. Ra7
{[%clk 0:00:27.2]} 51... Kd4 {[%clk 0:00:13]} 52. Kh2 {[%clk 0:00:27.3]} 52...
h4 {[%clk 0:00:12.6]} 53. Rd7+ {[%clk 0:00:26.8]} 53... Ke3 {[%clk 0:00:12.3]}
54. Re7+ {[%clk 0:00:25.9]} 54... Kd2 {[%clk 0:00:11.9]} 55. Rd7+ {[%clk
0:00:26.3]} 55... Kc3 {[%clk 0:00:11.8]} 56. Rc7+ {[%clk 0:00:26.7]} 56... Kd4
{[%clk 0:00:11.8]} 57. Rd7+ {[%clk 0:00:26.7]} 57... Kc5 {[%clk 0:00:11.8]} 58.
Ra7 {[%clk 0:00:26.5]} 58... f5 {[%clk 0:00:09.7]} 59. Ra8 {[%clk 0:00:22.3]}
59... Kd4 {[%clk 0:00:09.8]} 60. Rd8+ {[%clk 0:00:18.8]} 60... Ke3 {[%clk
0:00:09.6]} 61. Re8+ {[%clk 0:00:19]} 61... Kf2 {[%clk 0:00:09.9]} 62. Ra8
{[%clk 0:00:19.1]} 62... h3 {[%clk 0:00:08.5]} 63. gxh3 {[%clk 0:00:18.9]} 63...
Kxf3 {[%clk 0:00:08.8]} 64. Ra3+ {[%clk 0:00:18.2]} 64... Kf4 {[%clk 0:00:09]}
65. Ra4+ {[%clk 0:00:17.5]} 65... Kg5 {[%clk 0:00:09.1]} 66. Kg2 {[%clk
0:00:17.1]} 66... f4 {[%clk 0:00:07.9]} 67. h4+ {[%clk 0:00:17.6]} 67... Kg4
{[%clk 0:00:07.1]} 68. h5 {[%clk 0:00:17.8]} 68... Kg5 {[%clk 0:00:03.9]} 69. h6
{[%clk 0:00:17.7]} 69... f3+ {[%clk 0:00:04.1]} 70. Kh2 {[%clk 0:00:16.6]} 70...
Kxh6 {[%clk 0:00:03.5]} 71. Ra3 {[%clk 0:00:17.1]} 71... f2 {[%clk 0:00:02.9]}
72. Ra6+ {[%clk 0:00:18]} 72... Kg5 {[%clk 0:00:02.7]} 73. Ra8 {[%clk
0:00:18.2]} 73... Kf4 {[%clk 0:00:03.6]} 74. Rg8 {[%clk 0:00:19.1]} 74... Ke3
{[%clk 0:00:04.2]} 75. Rf8 {[%clk 0:00:20]} 75... Ke2 {[%clk 0:00:04.1]} 76.
Re8+ {[%clk 0:00:20.5]} 76... Kf1 {[%clk 0:00:05]} 77. Kg3 {[%clk 0:00:21]}
77... Rb1 {[%clk 0:00:04.9]} 78. Rf8 {[%clk 0:00:21.1]} 78... a1=Q {[%clk
0:00:05.2]} 79. Rxf2+ {[%clk 0:00:21.5]} 79... Kg1 {[%clk 0:00:06.1]} 80. Rg2+
{[%clk 0:00:21.8]} 80... Kf1 {[%clk 0:00:07]} 81. Rf2+ {[%clk 0:00:22.4]} 81...
Ke1 {[%clk 0:00:07.8]} 82. Rg2 {[%clk 0:00:19.5]} 82... Rb3+ {[%clk 0:00:07.8]}
83. Kh2 {[%clk 0:00:19.6]} 83... Qe5+ {[%clk 0:00:08]} 84. Kh1 {[%clk
0:00:19.5]} 84... Rh3+ {[%clk 0:00:07.8]} 85. Kg1 {[%clk 0:00:19.7]} 85... Rg3
{[%clk 0:00:08.1]} 0-1

[Event "*** SCC Grand Prix: Titled Tuesday Blitz"]
[Site "Chess.com"]
[Date "2020.06.09"]
[Round "9"]
[White "Anaj14"]
[Black "AshotParvanyan"]
[Result "0-1"]
[WhiteElo "2296"]
[BlackElo "2439"]
[TimeControl "180+1"]
[EndTime "10:48:38 PDT"]
[Termination "AshotParvanyan won on time"]

1. e4 {[%clk 0:03:00.9]} 1... e5 {[%clk 0:02:59.8]} 2. Nf3 {[%clk 0:03:00.6]}
2... Nc6 {[%clk 0:03:00.1]} 3. Bb5 {[%clk 0:03:00.2]} 3... g6 {[%clk 0:02:59.7]}
4. d3 {[%clk 0:02:56.3]} 4... Bg7 {[%clk 0:02:58.7]} 5. Nc3 {[%clk 0:02:54]}
5... a6 {[%clk 0:02:58.3]} 6. Ba4 {[%clk 0:02:53.7]} 6... d6 {[%clk 0:02:54.1]}
7. h3 {[%clk 0:02:52.4]} 7... Nf6 {[%clk 0:02:51.5]} 8. a3 {[%clk 0:02:51.9]}
8... O-O {[%clk 0:02:51.4]} 9. Bb3 {[%clk 0:02:52.2]} 9... h6 {[%clk 0:02:40.4]}
10. Be3 {[%clk 0:02:51]} 10... Qe7 {[%clk 0:02:15.3]} 11. Qd2 {[%clk 0:02:49.1]}
11... Kh7 {[%clk 0:02:15.4]} 12. g4 {[%clk 0:02:45.6]} 12... Nd7 {[%clk
0:01:53.6]} 13. Ne2 {[%clk 0:02:38.2]} 13... Nc5 {[%clk 0:01:51.3]} 14. Bd5
{[%clk 0:02:34.8]} 14... Be6 {[%clk 0:01:48.8]} 15. Ng3 {[%clk 0:02:24.5]} 15...
Bxd5 {[%clk 0:01:46.8]} 16. exd5 {[%clk 0:02:12.5]} 16... Nd4 {[%clk 0:01:46.3]}
17. Ng1 {[%clk 0:02:07.4]} 17... f5 {[%clk 0:01:32.3]} 18. gxf5 {[%clk
0:02:03.3]} 18... gxf5 {[%clk 0:01:33.2]} 19. Bxd4 {[%clk 0:01:53]} 19... exd4+
{[%clk 0:01:32.6]} 20. N1e2 {[%clk 0:01:49.1]} 20... f4 {[%clk 0:01:28.6]} 21.
Ne4 {[%clk 0:01:49]} 21... Nxe4 {[%clk 0:01:24.5]} 22. dxe4 {[%clk 0:01:49.3]}
22... Qxe4 {[%clk 0:01:17.9]} 23. O-O-O {[%clk 0:01:48.7]} 23... f3 {[%clk
0:00:46.3]} 24. Nxd4 {[%clk 0:01:42.5]} 24... Qxd5 {[%clk 0:00:37.8]} 25. Rhg1
{[%clk 0:01:13.8]} 25... Qxd4 {[%clk 0:00:34]} 26. Qxd4 {[%clk 0:01:13.2]} 26...
Bxd4 {[%clk 0:00:34.9]} 27. Rxd4 {[%clk 0:01:13.2]} 27... Rae8 {[%clk
0:00:33.8]} 28. Rc4 {[%clk 0:01:02]} 28... Rf7 {[%clk 0:00:32.2]} 29. Rb4 {[%clk
0:00:28.2]} 29... Re2 {[%clk 0:00:29]} 30. Rf1 {[%clk 0:00:26.3]} 30... b6
{[%clk 0:00:26.7]} 31. a4 {[%clk 0:00:25.8]} 31... a5 {[%clk 0:00:26.4]} 32. Rg4
{[%clk 0:00:25.1]} 32... Rfe7 {[%clk 0:00:17.8]} 33. Rgg1 {[%clk 0:00:24.4]}
33... R7e4 {[%clk 0:00:14.2]} 34. b3 {[%clk 0:00:24.3]} 34... Rd4 {[%clk
0:00:12.4]} 35. Rg3 {[%clk 0:00:18.3]} 35... Rdd2 {[%clk 0:00:12.3]} 36. Rxf3
{[%clk 0:00:17.9]} 36... Rxc2+ {[%clk 0:00:12.3]} 37. Kb1 {[%clk 0:00:17.9]}
37... Rb2+ {[%clk 0:00:12.3]} 38. Ka1 {[%clk 0:00:17.7]} 38... Ra2+ {[%clk
0:00:11.2]} 39. Kb1 {[%clk 0:00:18.2]} 39... Reb2+ {[%clk 0:00:10.7]} 40. Kc1
{[%clk 0:00:18.8]} 40... Ra1+ {[%clk 0:00:07.7]} 41. Kxb2 {[%clk 0:00:18.9]}
41... Rxf1 {[%clk 0:00:08.6]} 42. Rf7+ {[%clk 0:00:18.4]} 42... Kg6 {[%clk
0:00:08.6]} 43. Rxc7 {[%clk 0:00:18.5]} 43... Rxf2+ {[%clk 0:00:08.9]} 44. Ka3
{[%clk 0:00:19]} 44... Rf6 {[%clk 0:00:06.7]} 45. Rc6 {[%clk 0:00:17.4]} 45...
d5 {[%clk 0:00:06.8]} 46. Rc8 {[%clk 0:00:17.2]} 46... Rd6 {[%clk 0:00:06.1]}
47. Kb2 {[%clk 0:00:16.8]} 47... d4 {[%clk 0:00:05.8]} 48. Kc2 {[%clk
0:00:17.3]} 48... Kf5 {[%clk 0:00:06]} 49. Kd3 {[%clk 0:00:17.5]} 49... Ke5
{[%clk 0:00:05.6]} 50. h4 {[%clk 0:00:14.5]} 50... Kf4 {[%clk 0:00:03.8]} 51.
Rg8 {[%clk 0:00:13.3]} 51... Ke5 {[%clk 0:00:03.2]} 52. h5 {[%clk 0:00:13.4]}
52... Kd5 {[%clk 0:00:02.7]} 53. Rg4 {[%clk 0:00:10.2]} 53... Kc5 {[%clk
0:00:02.6]} 54. Rg6 {[%clk 0:00:10.1]} 54... Rd5 {[%clk 0:00:01.2]} 55. Rxh6
{[%clk 0:00:10.1]} 55... Rg5 {[%clk 0:00:01.4]} 56. Rh8 {[%clk 0:00:09.3]} 56...
Rg3+ {[%clk 0:00:01.8]} 57. Kc2 {[%clk 0:00:09.8]} 57... Rg2+ {[%clk 0:00:01.6]}
58. Kd3 {[%clk 0:00:10]} 58... Rg3+ {[%clk 0:00:02]} 59. Kc2 {[%clk 0:00:10.4]}
59... Kb4 {[%clk 0:00:02]} 60. Rb8 {[%clk 0:00:08.9]} 60... d3+ {[%clk
0:00:02.4]} 61. Kd2 {[%clk 0:00:09.1]} 61... Kxb3 {[%clk 0:00:02.8]} 62. Rxb6+
{[%clk 0:00:08.8]} 62... Kxa4 {[%clk 0:00:03.4]} 63. Rd6 {[%clk 0:00:09]} 63...
Rh3 {[%clk 0:00:03.6]} 64. h6 {[%clk 0:00:08.9]} 64... Kb4 {[%clk 0:00:03.3]}
65. Rd4+ {[%clk 0:00:08.7]} 65... Kc5 {[%clk 0:00:02.7]} 66. Rxd3 {[%clk
0:00:08.9]} 66... Rxh6 {[%clk 0:00:02.8]} 67. Ra3 {[%clk 0:00:09.2]} 67... Kb4
{[%clk 0:00:02.8]} 68. Rf3 {[%clk 0:00:08.5]} 68... Rc6 {[%clk 0:00:02.9]} 69.
Rf4+ {[%clk 0:00:06.9]} 69... Kb3 {[%clk 0:00:02.9]} 70. Rf3+ {[%clk 0:00:05.8]}
70... Kb2 {[%clk 0:00:02.9]} 71. Rf5 {[%clk 0:00:05.7]} 71... a4 {[%clk
0:00:02.6]} 72. Rb5+ {[%clk 0:00:05.8]} 72... Ka2 {[%clk 0:00:02.8]} 73. Rb4
{[%clk 0:00:05.4]} 73... a3 {[%clk 0:00:02.8]} 74. Rb5 {[%clk 0:00:05.4]} 74...
Ka1 {[%clk 0:00:03.2]} 75. Kd1 {[%clk 0:00:05.3]} 75... a2 {[%clk 0:00:03.4]}
76. Rb4 {[%clk 0:00:05.4]} 76... Rc8 {[%clk 0:00:03.4]} 77. Kd2 {[%clk
0:00:05.5]} 77... Rh8 {[%clk 0:00:03.1]} 78. Kc2 {[%clk 0:00:05.5]} 78... Rh2+
{[%clk 0:00:03]} 79. Kc1 {[%clk 0:00:05.7]} 79... Rh1+ {[%clk 0:00:03.3]} 80.
Kc2 {[%clk 0:00:06.2]} 80... Rb1 {[%clk 0:00:03.7]} 81. Ra4 {[%clk 0:00:06]}
81... Rb2+ {[%clk 0:00:03.9]} 82. Kc1 {[%clk 0:00:05.7]} 82... Rb8 {[%clk
0:00:04.3]} 83. Kc2 {[%clk 0:00:04.9]} 83... Rc8+ {[%clk 0:00:04.4]} 84. Kd1
{[%clk 0:00:04.9]} 84... Kb2 {[%clk 0:00:04.1]} 85. Rb4+ {[%clk 0:00:05.3]}
85... Ka3 {[%clk 0:00:03.8]} 86. Rb7 {[%clk 0:00:03.4]} 86... a1=Q+ {[%clk
0:00:03.6]} 0-1